[Event "Early-Titled-Tuesday-Blitz-June-18-2024"]
[Site "Chess.com"]
[Date "2024.06.18"]
[Round "9"]
[White "Roedor"]
[Black "TitarovVasiliYouTube"]
[Result "1-0"]
[WhiteElo "2444"]
[BlackElo "2576"]
[TimeControl "180+1"]
[EndTime "9:46:20 PDT"]
[Termination "Roedor won on time"]

1. d4 {[%clk 0:02:53.7]} 1... Nf6 {[%clk 0:02:57.8]} 2. c4 {[%clk 0:02:53.4]}
2... d6 {[%clk 0:02:58.2]} 3. Nf3 {[%clk 0:02:53]} 3... Bf5 {[%clk 0:02:57.8]}
4. Nc3 {[%clk 0:02:52.6]} 4... c6 {[%clk 0:02:56.9]} 5. g3 {[%clk 0:02:51.7]}
5... Ne4 {[%clk 0:02:55.7]} 6. Qb3 {[%clk 0:02:48.2]} 6... Qb6 {[%clk
0:02:54.9]} 7. Bg2 {[%clk 0:02:45.6]} 7... Nxc3 {[%clk 0:02:52.4]} 8. bxc3
{[%clk 0:02:46.5]} 8... Be4 {[%clk 0:02:51.3]} 9. O-O {[%clk 0:02:45.4]} 9... e6
{[%clk 0:02:51.2]} 10. Be3 {[%clk 0:02:42.8]} 10... d5 {[%clk 0:02:48.3]} 11. c5
{[%clk 0:02:43]} 11... Qxb3 {[%clk 0:02:46.1]} 12. axb3 {[%clk 0:02:43.9]} 12...
Nd7 {[%clk 0:02:44.9]} 13. b4 {[%clk 0:02:44.1]} 13... a6 {[%clk 0:02:45]} 14.
Nd2 {[%clk 0:02:43.3]} 14... Bxg2 {[%clk 0:02:44.1]} 15. Kxg2 {[%clk 0:02:44.2]}
15... Be7 {[%clk 0:02:42.7]} 16. Nb3 {[%clk 0:02:44.3]} 16... Bd8 {[%clk
0:02:41.5]} 17. f3 {[%clk 0:02:42.9]} 17... O-O {[%clk 0:02:38.9]} 18. Bf4
{[%clk 0:02:42.7]} 18... Re8 {[%clk 0:02:37.7]} 19. Bd6 {[%clk 0:02:41]} 19...
e5 {[%clk 0:02:32.4]} 20. e3 {[%clk 0:02:38.3]} 20... Be7 {[%clk 0:02:17]} 21.
Bxe7 {[%clk 0:02:34.9]} 21... Rxe7 {[%clk 0:02:17.9]} 22. Rfe1 {[%clk
0:02:33.8]} 22... Rae8 {[%clk 0:02:15]} 23. Kf2 {[%clk 0:02:32.9]} 23... f5
{[%clk 0:02:09.4]} 24. f4 {[%clk 0:02:31.7]} 24... exf4 {[%clk 0:02:04.1]} 25.
exf4 {[%clk 0:02:31.4]} 25... Nf6 {[%clk 0:02:04.4]} 26. Na5 {[%clk 0:02:10.8]}
26... Ne4+ {[%clk 0:02:01.9]} 27. Kf1 {[%clk 0:02:09.9]} 27... Kf7 {[%clk
0:01:45.9]} 28. c4 {[%clk 0:02:06.9]} 28... Nd2+ {[%clk 0:01:40.3]} 29. Kf2
{[%clk 0:02:03]} 29... dxc4 {[%clk 0:01:27.2]} 30. Rxe7+ {[%clk 0:02:00.8]}
30... Rxe7 {[%clk 0:01:27.4]} 31. Rc1 {[%clk 0:02:00.7]} 31... c3 {[%clk
0:01:06.4]} 32. h3 {[%clk 0:01:55.6]} 32... Ne4+ {[%clk 0:01:01.6]} 33. Kf3
{[%clk 0:01:48.3]} 33... Rd7 {[%clk 0:00:59]} 34. g4 {[%clk 0:01:46.5]} 34...
Rxd4 {[%clk 0:00:57.1]} 35. Nxb7 {[%clk 0:01:39.2]} 35... Rxb4 {[%clk
0:00:19.8]} 36. Nd8+ {[%clk 0:01:37.7]} 36... Kf8 {[%clk 0:00:18.9]} 37. Nxc6
{[%clk 0:01:37.9]} 37... Rc4 {[%clk 0:00:18.1]} 38. Ne5 {[%clk 0:01:37.1]} 38...
Ra4 {[%clk 0:00:16.7]} 39. c6 {[%clk 0:01:35.7]} 39... Ke7 {[%clk 0:00:13.3]}
40. c7 {[%clk 0:01:32.5]} 40... Nd6 {[%clk 0:00:12.8]} 41. Rxc3 {[%clk
0:01:32.7]} 41... fxg4+ {[%clk 0:00:10.4]} 42. hxg4 {[%clk 0:01:32.6]} 42... Nc8
{[%clk 0:00:09.8]} 43. Rd3 {[%clk 0:01:28.2]} 43... g5 {[%clk 0:00:04.4]} 44.
fxg5 {[%clk 0:01:27.9]} 44... Ke6 {[%clk 0:00:02.4]} 45. g6 {[%clk 0:01:13.7]}
1-0

[Event "Early-Titled-Tuesday-Blitz-June-18-2024"]
[Site "Chess.com"]
[Date "2024.06.18"]
[Round "9"]
[White "dropstoneDP"]
[Black "Aradhya2000"]
[Result "1-0"]
[WhiteElo "2983"]
[BlackElo "2819"]
[TimeControl "180+1"]
[EndTime "9:46:22 PDT"]
[Termination "dropstoneDP won by checkmate"]

1. e4 {[%clk 0:03:00.9]} 1... e5 {[%clk 0:02:59.8]} 2. Nf3 {[%clk 0:03:00.2]}
2... Nc6 {[%clk 0:03:00.3]} 3. Bc4 {[%clk 0:02:58.3]} 3... Nf6 {[%clk
0:03:00.1]} 4. d3 {[%clk 0:02:58.5]} 4... h6 {[%clk 0:02:59]} 5. c3 {[%clk
0:02:55]} 5... Bc5 {[%clk 0:02:59.3]} 6. b4 {[%clk 0:02:53.3]} 6... Bb6 {[%clk
0:02:59]} 7. a4 {[%clk 0:02:51.9]} 7... a6 {[%clk 0:02:58.4]} 8. O-O {[%clk
0:02:51.7]} 8... d6 {[%clk 0:02:58.4]} 9. Ra2 {[%clk 0:02:45.9]} 9... g5 {[%clk
0:02:51]} 10. Be3 {[%clk 0:02:44.9]} 10... g4 {[%clk 0:02:49.2]} 11. Nh4 {[%clk
0:02:37.9]} 11... Ba7 {[%clk 0:02:39.6]} 12. g3 {[%clk 0:02:35.8]} 12... Be6
{[%clk 0:02:22.3]} 13. Bxe6 {[%clk 0:02:33.6]} 13... fxe6 {[%clk 0:02:23.2]} 14.
Bxa7 {[%clk 0:02:33.8]} 14... Rxa7 {[%clk 0:02:24.1]} 15. f4 {[%clk 0:02:28.7]}
15... exf4 {[%clk 0:02:19.6]} 16. Rxf4 {[%clk 0:02:27.6]} 16... Ne5 {[%clk
0:01:54.7]} 17. Raf2 {[%clk 0:02:25.3]} 17... O-O {[%clk 0:01:53.9]} 18. d4
{[%clk 0:02:23.9]} 18... Ned7 {[%clk 0:01:53.9]} 19. Ng6 {[%clk 0:02:22.5]}
19... e5 {[%clk 0:01:43.9]} 20. dxe5 {[%clk 0:02:12.4]} 20... dxe5 {[%clk
0:01:43.2]} 21. Rf5 {[%clk 0:02:08.9]} 21... Re8 {[%clk 0:01:34.9]} 22. Na3
{[%clk 0:01:45.3]} 22... Kg7 {[%clk 0:00:54.3]} 23. Nh4 {[%clk 0:01:44.2]} 23...
Ra8 {[%clk 0:00:54.3]} 24. Nc4 {[%clk 0:01:41.7]} 24... Rf8 {[%clk 0:00:30.2]}
25. Ne3 {[%clk 0:01:39.3]} 25... Qe8 {[%clk 0:00:26.9]} 26. Nxg4 {[%clk
0:01:34.4]} 26... Nxe4 {[%clk 0:00:25.5]} 27. Rxf8 {[%clk 0:01:31.3]} 27... Nxf8
{[%clk 0:00:26]} 28. Nf5+ {[%clk 0:01:31.9]} 28... Kh7 {[%clk 0:00:19.5]} 29.
Qc2 {[%clk 0:01:26.3]} 29... Qc6 {[%clk 0:00:16.6]} 30. Qxe4 {[%clk 0:01:25.2]}
30... Qxe4 {[%clk 0:00:17.3]} 31. Nf6+ {[%clk 0:01:25.7]} 31... Kg6 {[%clk
0:00:17.8]} 32. Nxe4 {[%clk 0:01:26.6]} 32... Rd8 {[%clk 0:00:17.7]} 33. Ne3
{[%clk 0:01:23.9]} 33... Rd3 {[%clk 0:00:17.1]} 34. Nc4 {[%clk 0:01:22.8]} 34...
Nd7 {[%clk 0:00:17.2]} 35. Rd2 {[%clk 0:01:23.3]} 35... Rxd2 {[%clk 0:00:17]}
36. Ncxd2 {[%clk 0:01:23.8]} 36... Kf5 {[%clk 0:00:17.4]} 37. Kf2 {[%clk
0:01:23.9]} 37... Nb6 {[%clk 0:00:17.7]} 38. a5 {[%clk 0:01:24.5]} 38... Nd5
{[%clk 0:00:18]} 39. Kf3 {[%clk 0:01:25.1]} 39... h5 {[%clk 0:00:17.9]} 40. h3
{[%clk 0:01:24.5]} 40... b6 {[%clk 0:00:17.5]} 41. g4+ {[%clk 0:01:24.8]} 41...
hxg4+ {[%clk 0:00:17.1]} 42. hxg4+ {[%clk 0:01:25.7]} 42... Ke6 {[%clk
0:00:17.8]} 43. Nc4 {[%clk 0:01:25.7]} 43... bxa5 {[%clk 0:00:13.5]} 44. Nxa5
{[%clk 0:01:26.6]} 44... Nb6 {[%clk 0:00:12.8]} 45. Nc5+ {[%clk 0:01:25.6]}
45... Kd5 {[%clk 0:00:12.3]} 46. Ke3 {[%clk 0:01:26.2]} 46... c6 {[%clk
0:00:10.3]} 47. c4+ {[%clk 0:01:25.8]} 47... Nxc4+ {[%clk 0:00:10.4]} 48. Nxc4
{[%clk 0:01:26.7]} 48... Kxc4 {[%clk 0:00:11.3]} 49. g5 {[%clk 0:01:27.4]} 49...
Kxb4 {[%clk 0:00:11.8]} 50. g6 {[%clk 0:01:27.9]} 50... Kxc5 {[%clk 0:00:12.3]}
51. g7 {[%clk 0:01:28.8]} 51... Kb4 {[%clk 0:00:11.6]} 52. g8=Q {[%clk
0:01:29.7]} 52... c5 {[%clk 0:00:12.2]} 53. Kd3 {[%clk 0:01:30.6]} 53... e4+
{[%clk 0:00:11.8]} 54. Kxe4 {[%clk 0:01:30.4]} 54... c4 {[%clk 0:00:12.1]} 55.
Kd4 {[%clk 0:01:30.6]} 55... a5 {[%clk 0:00:10.3]} 56. Qb8+ {[%clk 0:01:31.5]}
56... Ka3 {[%clk 0:00:09.9]} 57. Kc3 {[%clk 0:01:32]} 57... Ka4 {[%clk
0:00:09.3]} 58. Qb1 {[%clk 0:01:32.3]} 58... Ka3 {[%clk 0:00:09.3]} 59. Qa1#
{[%clk 0:01:33.2]} 1-0

[Event "Early-Titled-Tuesday-Blitz-June-18-2024"]
[Site "Chess.com"]
[Date "2024.06.18"]
[Round "9"]
[White "Nf3c5"]
[Black "pavelalexandru07"]
[Result "1-0"]
[WhiteElo "2608"]
[BlackElo "2461"]
[TimeControl "180+1"]
[EndTime "9:46:29 PDT"]
[Termination "Nf3c5 won by resignation"]

1. e4 {[%clk 0:02:51.5]} 1... c5 {[%clk 0:02:59.5]} 2. Nc3 {[%clk 0:02:50.6]}
2... a6 {[%clk 0:02:59.3]} 3. Nge2 {[%clk 0:02:48.6]} 3... b5 {[%clk 0:02:58.4]}
4. g3 {[%clk 0:02:47.8]} 4... Bb7 {[%clk 0:02:58.2]} 5. Bg2 {[%clk 0:02:48.4]}
5... e6 {[%clk 0:02:58]} 6. O-O {[%clk 0:02:47.9]} 6... Be7 {[%clk 0:02:54.1]}
7. d4 {[%clk 0:02:45.1]} 7... cxd4 {[%clk 0:02:53.1]} 8. Nxd4 {[%clk 0:02:45.3]}
8... Qc7 {[%clk 0:02:53]} 9. Re1 {[%clk 0:02:43.5]} 9... d6 {[%clk 0:02:47.6]}
10. a4 {[%clk 0:02:40.3]} 10... b4 {[%clk 0:02:47.3]} 11. Nd5 {[%clk 0:02:41]}
11... exd5 {[%clk 0:02:47.7]} 12. exd5 {[%clk 0:02:41.6]} 12... Kf8 {[%clk
0:02:42.7]} 13. Bd2 {[%clk 0:02:16.8]} 13... Nd7 {[%clk 0:02:33.1]} 14. Bxb4
{[%clk 0:02:12.8]} 14... Nc5 {[%clk 0:02:06.8]} 15. Nf5 {[%clk 0:01:54.3]} 15...
Bc8 {[%clk 0:02:03.7]} 16. Nxe7 {[%clk 0:01:35]} 16... Nxe7 {[%clk 0:02:03.4]}
17. Qe2 {[%clk 0:01:35.3]} 17... Ra7 {[%clk 0:01:57.1]} 18. Ra3 {[%clk
0:01:27.2]} 18... a5 {[%clk 0:01:26.7]} 19. Bxc5 {[%clk 0:01:24.5]} 19... Qxc5
{[%clk 0:01:23.4]} 20. Rc3 {[%clk 0:01:23.9]} 20... Ba6 {[%clk 0:01:18.2]} 21.
Qe4 {[%clk 0:01:02.4]} 21... Qb4 {[%clk 0:01:01.2]} 22. Qe3 {[%clk 0:00:58.5]}
22... Qb8 {[%clk 0:00:48]} 23. Rb3 {[%clk 0:00:47.2]} 23... Qa8 {[%clk
0:00:47.7]} 24. Qb6 {[%clk 0:00:40.7]} 24... Bc4 {[%clk 0:00:37.7]} 25. Rbe3
{[%clk 0:00:39.4]} 25... Rd7 {[%clk 0:00:19.1]} 26. b3 {[%clk 0:00:30.8]} 26...
Bxd5 {[%clk 0:00:14.3]} 27. Rxe7 {[%clk 0:00:30.2]} 27... Rxe7 {[%clk
0:00:10.7]} 28. Qxd6 {[%clk 0:00:30.8]} 28... Qe8 {[%clk 0:00:05.7]} 29. Bxd5
{[%clk 0:00:29.4]} 29... g6 {[%clk 0:00:03.5]} 30. Bc6 {[%clk 0:00:27.6]} 30...
Kg7 {[%clk 0:00:01.1]} 31. Rxe7 {[%clk 0:00:25.6]} 31... Qc8 {[%clk 0:00:01]}
32. Qe5+ {[%clk 0:00:22.5]} 32... Kh6 {[%clk 0:00:01.5]} 33. Rxf7 {[%clk
0:00:20.4]} 33... Rd8 {[%clk 0:00:01.6]} 34. Qf4+ {[%clk 0:00:20.1]} 34... Kh5
{[%clk 0:00:01.6]} 35. Bf3+ {[%clk 0:00:19.4]} 1-0

[Event "Early-Titled-Tuesday-Blitz-June-18-2024"]
[Site "Chess.com"]
[Date "2024.06.18"]
[Round "9"]
[White "Muracle"]
[Black "CSB7"]
[Result "0-1"]
[WhiteElo "2597"]
[BlackElo "2761"]
[TimeControl "180+1"]
[EndTime "9:46:30 PDT"]
[Termination "CSB7 won on time"]

1. d4 {[%clk 0:02:59]} 1... Nf6 {[%clk 0:02:59.5]} 2. Nf3 {[%clk 0:02:58.2]}
2... g6 {[%clk 0:02:59.2]} 3. g3 {[%clk 0:02:58.3]} 3... Bg7 {[%clk 0:02:59.3]}
4. Bg2 {[%clk 0:02:58.9]} 4... O-O {[%clk 0:02:59.7]} 5. O-O {[%clk 0:02:59.5]}
5... d5 {[%clk 0:02:58.9]} 6. c4 {[%clk 0:03:00]} 6... c6 {[%clk 0:02:55.2]} 7.
b3 {[%clk 0:03:00.4]} 7... Bf5 {[%clk 0:02:53.8]} 8. Bb2 {[%clk 0:02:53.4]} 8...
Nbd7 {[%clk 0:02:52.9]} 9. e3 {[%clk 0:02:51.2]} 9... a5 {[%clk 0:02:36.9]} 10.
Nc3 {[%clk 0:02:46.8]} 10... Ne4 {[%clk 0:02:22]} 11. Nh4 {[%clk 0:02:21]} 11...
Nxc3 {[%clk 0:02:20.6]} 12. Bxc3 {[%clk 0:02:21.9]} 12... Be6 {[%clk 0:02:21]}
13. Qe2 {[%clk 0:02:18.5]} 13... dxc4 {[%clk 0:02:01.1]} 14. bxc4 {[%clk
0:02:19.4]} 14... Nb6 {[%clk 0:02:01.3]} 15. c5 {[%clk 0:00:52.8]} 15... Bc4
{[%clk 0:01:59.9]} 16. Qe1 {[%clk 0:00:52.9]} 16... Nd5 {[%clk 0:01:51.2]} 17.
Nf3 {[%clk 0:00:43.9]} 17... b5 {[%clk 0:01:25.8]} 18. cxb6 {[%clk 0:00:41.3]}
18... Qxb6 {[%clk 0:01:16.4]} 19. Rb1 {[%clk 0:00:31.7]} 19... Qc7 {[%clk
0:01:11.1]} 20. Bd2 {[%clk 0:00:24.7]} 20... Rfb8 {[%clk 0:01:02.1]} 21. Rxb8+
{[%clk 0:00:18.5]} 21... Qxb8 {[%clk 0:01:01.1]} 22. Qc1 {[%clk 0:00:18.2]}
22... Bxf1 {[%clk 0:00:59.9]} 23. Bxf1 {[%clk 0:00:19.1]} 23... Qb6 {[%clk
0:00:57.8]} 24. Bc4 {[%clk 0:00:16.6]} 24... e6 {[%clk 0:00:57.1]} 25. Ne1
{[%clk 0:00:09.6]} 25... Rb8 {[%clk 0:00:52.5]} 26. Nd3 {[%clk 0:00:06.3]} 26...
Qb1 {[%clk 0:00:46.3]} 27. Bxa5 {[%clk 0:00:06]} 27... c5 {[%clk 0:00:32.5]} 28.
dxc5 {[%clk 0:00:02.8]} 28... Qxc1+ {[%clk 0:00:32.2]} 29. Nxc1 {[%clk
0:00:03.7]} 29... Rb1 {[%clk 0:00:31.9]} 30. Bd2 {[%clk 0:00:04.2]} 30... Bb2
{[%clk 0:00:31.9]} 31. Bd3 {[%clk 0:00:02.8]} 31... Ra1 {[%clk 0:00:28.6]} 32.
Kg2 {[%clk 0:00:01.9]} 32... Bxc1 {[%clk 0:00:28.4]} 33. Ba5 {[%clk 0:00:02.6]}
33... Rxa2 {[%clk 0:00:26.3]} 34. Bc4 {[%clk 0:00:02.5]} 34... Rxa5 {[%clk
0:00:25.8]} 35. Bxd5 {[%clk 0:00:02.6]} 35... exd5 {[%clk 0:00:26.2]} 36. c6
{[%clk 0:00:03.1]} 36... Rc5 {[%clk 0:00:27]} 37. c7 {[%clk 0:00:04]} 37... Rxc7
{[%clk 0:00:25.4]} 0-1

[Event "Early-Titled-Tuesday-Blitz-June-18-2024"]
[Site "Chess.com"]
[Date "2024.06.18"]
[Round "9"]
[White "Defend1r"]
[Black "Sprinc1"]
[Result "1-0"]
[WhiteElo "2540"]
[BlackElo "2274"]
[TimeControl "180+1"]
[EndTime "9:46:30 PDT"]
[Termination "Defend1r won on time"]

1. Nf3 {[%clk 0:02:38.1]} 1... d5 {[%clk 0:02:59]} 2. c4 {[%clk 0:02:37.8]} 2...
e6 {[%clk 0:02:55.8]} 3. e3 {[%clk 0:02:37.5]} 3... Nf6 {[%clk 0:02:53.1]} 4. b3
{[%clk 0:02:37.5]} 4... Bd6 {[%clk 0:02:53.3]} 5. Bb2 {[%clk 0:02:37.4]} 5...
O-O {[%clk 0:02:52.3]} 6. Qc2 {[%clk 0:02:37.5]} 6... Nbd7 {[%clk 0:02:50.2]} 7.
d4 {[%clk 0:02:37.2]} 7... c5 {[%clk 0:02:44.6]} 8. Bd3 {[%clk 0:02:36.4]} 8...
cxd4 {[%clk 0:02:42]} 9. Nxd4 {[%clk 0:02:32.6]} 9... Ne5 {[%clk 0:02:23]} 10.
O-O {[%clk 0:02:25.1]} 10... Nxd3 {[%clk 0:02:21.8]} 11. Qxd3 {[%clk 0:02:24.9]}
11... dxc4 {[%clk 0:02:10.5]} 12. Qxc4 {[%clk 0:02:22.7]} 12... Bd7 {[%clk
0:02:10.6]} 13. Nc3 {[%clk 0:02:20.3]} 13... Rc8 {[%clk 0:02:08.7]} 14. Qd3
{[%clk 0:02:20.1]} 14... a6 {[%clk 0:02:07.3]} 15. Rad1 {[%clk 0:02:19.1]} 15...
Bb8 {[%clk 0:01:53.1]} 16. Nce2 {[%clk 0:02:13.8]} 16... Qc7 {[%clk 0:01:50.6]}
17. Ng3 {[%clk 0:02:10.3]} 17... Rfd8 {[%clk 0:01:45.1]} 18. Qe2 {[%clk
0:02:05.3]} 18... h5 {[%clk 0:01:38.1]} 19. Rc1 {[%clk 0:02:05.1]} 19... Qd6
{[%clk 0:01:31.1]} 20. Rxc8 {[%clk 0:02:03.3]} 20... Bxc8 {[%clk 0:01:27.6]} 21.
Nf3 {[%clk 0:01:54.8]} 21... Qd5 {[%clk 0:00:54.3]} 22. e4 {[%clk 0:01:23.9]}
22... Qa5 {[%clk 0:00:24.8]} 23. e5 {[%clk 0:01:18.5]} 23... Nd5 {[%clk
0:00:18.5]} 24. Ba1 {[%clk 0:00:50.6]} 24... Nb4 {[%clk 0:00:11.6]} 25. Bc3
{[%clk 0:00:44.5]} 25... Qc5 {[%clk 0:00:05.4]} 26. Bxb4 {[%clk 0:00:32.2]}
26... Qxb4 {[%clk 0:00:06.3]} 27. Nxh5 {[%clk 0:00:32.3]} 27... Bd7 {[%clk
0:00:03.7]} 28. Qe3 {[%clk 0:00:31.5]} 28... Qe7 {[%clk 0:00:02.1]} 29. h4
{[%clk 0:00:22]} 29... Bc6 {[%clk 0:00:02.2]} 30. Re1 {[%clk 0:00:20.9]} 30...
b5 {[%clk 0:00:01.9]} 31. Nf4 {[%clk 0:00:16.3]} 31... Ba7 {[%clk 0:00:02.1]}
32. Qe2 {[%clk 0:00:13.6]} 1-0

[Event "Early-Titled-Tuesday-Blitz-June-18-2024"]
[Site "Chess.com"]
[Date "2024.06.18"]
[Round "9"]
[White "GMAkobianSTL"]
[Black "Polish_fighter3000"]
[Result "0-1"]
[WhiteElo "2848"]
[BlackElo "3072"]
[TimeControl "180+1"]
[EndTime "9:46:31 PDT"]
[Termination "Polish_fighter3000 won by resignation"]

1. d4 {[%clk 0:03:00.9]} 1... Nf6 {[%clk 0:01:51.8]} 2. c4 {[%clk 0:02:57.1]}
2... d6 {[%clk 0:01:52.7]} 3. Nf3 {[%clk 0:02:55.3]} 3... g6 {[%clk 0:01:50.9]}
4. Nc3 {[%clk 0:02:55]} 4... Bg7 {[%clk 0:01:51.2]} 5. Bg5 {[%clk 0:02:54.3]}
5... h6 {[%clk 0:01:48.2]} 6. Bf4 {[%clk 0:02:54.3]} 6... Nc6 {[%clk 0:01:38.1]}
7. d5 {[%clk 0:02:53.7]} 7... e5 {[%clk 0:01:37.4]} 8. Bd2 {[%clk 0:02:49]} 8...
Nd4 {[%clk 0:01:27.5]} 9. e3 {[%clk 0:02:39.4]} 9... Nxf3+ {[%clk 0:01:23.7]}
10. gxf3 {[%clk 0:02:39.6]} 10... O-O {[%clk 0:01:21]} 11. Bd3 {[%clk
0:02:39.1]} 11... Nh5 {[%clk 0:01:16.8]} 12. h4 {[%clk 0:02:35]} 12... Bd7
{[%clk 0:01:12.6]} 13. Qc2 {[%clk 0:02:31.6]} 13... f5 {[%clk 0:00:45.9]} 14.
O-O-O {[%clk 0:02:28.1]} 14... Kh7 {[%clk 0:00:42.4]} 15. Rdg1 {[%clk
0:02:27.1]} 15... a6 {[%clk 0:00:41.5]} 16. Kb1 {[%clk 0:02:26.3]} 16... Rb8
{[%clk 0:00:40.4]} 17. Ne2 {[%clk 0:02:21.6]} 17... b5 {[%clk 0:00:32.8]} 18. c5
{[%clk 0:02:13.8]} 18... c6 {[%clk 0:00:32.4]} 19. dxc6 {[%clk 0:01:41.5]} 19...
Bxc6 {[%clk 0:00:33.3]} 20. e4 {[%clk 0:01:41.6]} 20... f4 {[%clk 0:00:27.7]}
21. cxd6 {[%clk 0:01:35]} 21... Qxd6 {[%clk 0:00:28.6]} 22. Rc1 {[%clk
0:01:25.5]} 22... Rfd8 {[%clk 0:00:20.5]} 23. Qxc6 {[%clk 0:01:21]} 23... Qxd3+
{[%clk 0:00:20.3]} 24. Rc2 {[%clk 0:01:17.4]} 24... Qxe2 {[%clk 0:00:20.4]} 25.
Rg1 {[%clk 0:01:17.4]} 25... Rxd2 {[%clk 0:00:14.8]} 26. Qxg6+ {[%clk
0:01:11.4]} 26... Kh8 {[%clk 0:00:14.8]} 27. Rxd2 {[%clk 0:01:09.4]} 27... Qxd2
{[%clk 0:00:15.7]} 28. Qxh5 {[%clk 0:01:09.2]} 28... Rc8 {[%clk 0:00:14.3]} 29.
a3 {[%clk 0:01:07.8]} 29... Qd7 {[%clk 0:00:06.2]} 30. Qg6 {[%clk 0:01:02.5]}
30... Rc6 {[%clk 0:00:05.8]} 31. Qh5 {[%clk 0:00:58.8]} 31... a5 {[%clk
0:00:05.5]} 32. Rxg7 {[%clk 0:00:42.8]} 32... Kxg7 {[%clk 0:00:01.7]} 33. Qxe5+
{[%clk 0:00:42.6]} 33... Rf6 {[%clk 0:00:02]} 34. h5 {[%clk 0:00:40.5]} 34... b4
{[%clk 0:00:02.3]} 35. axb4 {[%clk 0:00:39.6]} 35... axb4 {[%clk 0:00:03.2]} 36.
b3 {[%clk 0:00:40.1]} 36... Qd1+ {[%clk 0:00:03.2]} 37. Ka2 {[%clk 0:00:39.3]}
37... Qe2+ {[%clk 0:00:03.5]} 38. Kb1 {[%clk 0:00:39.3]} 38... Qe1+ {[%clk
0:00:04]} 39. Ka2 {[%clk 0:00:39.4]} 39... Qxf2+ {[%clk 0:00:04.5]} 40. Kb1
{[%clk 0:00:39.4]} 40... Qe1+ {[%clk 0:00:04.9]} 41. Ka2 {[%clk 0:00:39.7]}
41... Qd2+ {[%clk 0:00:05.1]} 42. Kb1 {[%clk 0:00:40]} 42... Qe1+ {[%clk
0:00:03.2]} 43. Ka2 {[%clk 0:00:39.8]} 43... Qc3 {[%clk 0:00:03.9]} 44. Qe7+
{[%clk 0:00:38.8]} 44... Rf7 {[%clk 0:00:04.2]} 0-1

[Event "Early-Titled-Tuesday-Blitz-June-18-2024"]
[Site "Chess.com"]
[Date "2024.06.18"]
[Round "9"]
[White "AlphaPerseii"]
[Black "Sic_Transit_GM"]
[Result "1-0"]
[WhiteElo "2410"]
[BlackElo "2563"]
[TimeControl "180+1"]
[EndTime "9:46:31 PDT"]
[Termination "AlphaPerseii won by checkmate"]

1. e4 {[%clk 0:02:59.3]} 1... e5 {[%clk 0:02:59]} 2. Nf3 {[%clk 0:02:59.1]} 2...
Nc6 {[%clk 0:02:59.6]} 3. Bb5 {[%clk 0:02:58.3]} 3... a6 {[%clk 0:02:59.5]} 4.
Ba4 {[%clk 0:02:58.3]} 4... Nf6 {[%clk 0:03:00.1]} 5. O-O {[%clk 0:02:59]} 5...
Bc5 {[%clk 0:03:00.7]} 6. Nxe5 {[%clk 0:02:42.8]} 6... Nxe5 {[%clk 0:02:58.1]}
7. d4 {[%clk 0:02:42.9]} 7... b5 {[%clk 0:02:39.6]} 8. Bb3 {[%clk 0:02:36.7]}
8... O-O {[%clk 0:02:27.4]} 9. dxe5 {[%clk 0:02:30.9]} 9... Nxe4 {[%clk
0:00:59.1]} 10. Qd5 {[%clk 0:02:29.7]} 10... Qh4 {[%clk 0:00:59.7]} 11. g3
{[%clk 0:01:33.4]} 11... Nxg3 {[%clk 0:00:58.6]} 12. hxg3 {[%clk 0:01:33.7]}
12... Qxg3+ {[%clk 0:00:59.1]} 13. Qg2 {[%clk 0:01:34.4]} 13... Qxg2+ {[%clk
0:00:51.7]} 14. Kxg2 {[%clk 0:01:35.3]} 14... Bb7+ {[%clk 0:00:52.1]} 15. Kh2
{[%clk 0:01:27.4]} 15... Rae8 {[%clk 0:00:49.1]} 16. f4 {[%clk 0:01:10]} 16...
Kh8 {[%clk 0:00:43.9]} 17. Nc3 {[%clk 0:01:06.7]} 17... f6 {[%clk 0:00:44.4]}
18. exf6 {[%clk 0:01:06.5]} 18... Rxf6 {[%clk 0:00:44.5]} 19. f5 {[%clk
0:00:48.7]} 19... b4 {[%clk 0:00:38.7]} 20. Nd5 {[%clk 0:00:44]} 20... Re2+
{[%clk 0:00:37.4]} 21. Kg3 {[%clk 0:00:43.1]} 21... Rd6 {[%clk 0:00:36.2]} 22.
Nf4 {[%clk 0:00:34.6]} 22... Re4 {[%clk 0:00:27.2]} 23. Ng6+ {[%clk 0:00:30.8]}
23... Rxg6+ {[%clk 0:00:19.1]} 24. fxg6 {[%clk 0:00:31.3]} 24... Bd6+ {[%clk
0:00:18.2]} 25. Bf4 {[%clk 0:00:29.3]} 25... Re3+ {[%clk 0:00:17.2]} 26. Kg4
{[%clk 0:00:28]} 26... h5+ {[%clk 0:00:16.9]} 27. Kxh5 {[%clk 0:00:09.6]} 27...
Bf3+ {[%clk 0:00:07.1]} 28. Kg5 {[%clk 0:00:09.9]} 28... Be7+ {[%clk 0:00:03.9]}
29. Kf5 {[%clk 0:00:10.3]} 29... Be4+ {[%clk 0:00:03.4]} 30. Kg4 {[%clk
0:00:10.8]} 30... Re2 {[%clk 0:00:02.6]} 31. Rh1+ {[%clk 0:00:10.9]} 31... Bxh1
{[%clk 0:00:02.5]} 32. Rxh1+ {[%clk 0:00:11.8]} 32... Bh4 {[%clk 0:00:02.2]} 33.
Rxh4# {[%clk 0:00:11.2]} 1-0

[Event "Early-Titled-Tuesday-Blitz-June-18-2024"]
[Site "Chess.com"]
[Date "2024.06.18"]
[Round "9"]
[White "Gryffindorac8"]
[Black "koncheto"]
[Result "0-1"]
[WhiteElo "2483"]
[BlackElo "2631"]
[TimeControl "180+1"]
[EndTime "9:46:32 PDT"]
[Termination "koncheto won by checkmate"]

1. d4 {[%clk 0:02:54.3]} 1... e5 {[%clk 0:02:58.9]} 2. dxe5 {[%clk 0:02:53.5]}
2... Nc6 {[%clk 0:02:55.8]} 3. Nf3 {[%clk 0:02:52.5]} 3... Qe7 {[%clk
0:02:53.9]} 4. Bf4 {[%clk 0:02:48.1]} 4... d6 {[%clk 0:02:50.9]} 5. exd6 {[%clk
0:02:44.3]} 5... Qf6 {[%clk 0:02:50.2]} 6. Qc1 {[%clk 0:02:11.5]} 6... cxd6
{[%clk 0:02:08.5]} 7. Nc3 {[%clk 0:01:58.4]} 7... Bf5 {[%clk 0:02:01.1]} 8. e3
{[%clk 0:01:45.6]} 8... Nge7 {[%clk 0:01:45.3]} 9. Bd3 {[%clk 0:01:39.7]} 9...
Ng6 {[%clk 0:01:42.9]} 10. Nd5 {[%clk 0:01:24.5]} 10... Qd8 {[%clk 0:01:25]} 11.
Bxf5 {[%clk 0:01:18.9]} 11... Be7 {[%clk 0:01:13.9]} 12. Bxg6 {[%clk 0:01:14.2]}
12... hxg6 {[%clk 0:01:13.8]} 13. O-O {[%clk 0:01:10.4]} 13... g5 {[%clk
0:01:12]} 14. Bg3 {[%clk 0:01:05.6]} 14... g4 {[%clk 0:01:11.2]} 15. Nxe7 {[%clk
0:01:00]} 15... gxf3 {[%clk 0:00:59.9]} 16. Nxc6 {[%clk 0:00:58.7]} 16... bxc6
{[%clk 0:00:51.6]} 17. gxf3 {[%clk 0:00:53.6]} 17... Qd7 {[%clk 0:00:49.9]} 18.
Qd1 {[%clk 0:00:49.1]} 18... O-O-O {[%clk 0:00:44.8]} 19. Qd4 {[%clk 0:00:41.4]}
19... Kb7 {[%clk 0:00:33.5]} 20. c4 {[%clk 0:00:36.4]} 20... Rh5 {[%clk
0:00:18.6]} 21. Rac1 {[%clk 0:00:32.7]} 21... Rdh8 {[%clk 0:00:14.3]} 22. Qxd6
{[%clk 0:00:24.2]} 22... Qc8 {[%clk 0:00:09]} 23. Rc3 {[%clk 0:00:18.7]} 23...
Rg5 {[%clk 0:00:07.6]} 24. Rb3+ {[%clk 0:00:17.6]} 24... Ka8 {[%clk 0:00:07.8]}
25. c5 {[%clk 0:00:13.1]} 25... Rg6 {[%clk 0:00:05.6]} 26. Qf4 {[%clk
0:00:11.9]} 26... Rf6 {[%clk 0:00:04.4]} 27. Qe5 {[%clk 0:00:11]} 27... Re6
{[%clk 0:00:04.2]} 28. Qd4 {[%clk 0:00:08]} 28... Rg6 {[%clk 0:00:03.9]} 29. Qe4
{[%clk 0:00:06.5]} 29... Qh3 {[%clk 0:00:03.4]} 30. Qf4 {[%clk 0:00:02]} 30...
Qxh2# {[%clk 0:00:03.3]} 0-1